fUSD/lending_fUSD_20241003
["ID","MTS","AMOUNT","RATE_DAILY","PERIOD"]
[339767755,1727973040138,-150.0,0.00010923,2]
[339767756,1727973040147,-150.0,0.00010926,2]
[339767757,1727973040157,-150.0,0.00010927,2]
[339767758,1727973040166,-150.0,0.00010929,2]
[339767760,1727973040176,-150.0,0.00010931,2]
[339767761,1727973040186,-150.0,0.00010934,2]
[339767763,1727973040195,-150.0,0.00010939,2]
[339767765,1727973040205,-1500.0,0.0001094,2]
[339767766,1727973040215,-150.0,0.00010942,2]
[339767767,1727973040224,-150.0,0.00010942,2]
[339767769,1727973040233,-150.0,0.00010942,2]
[339767770,1727973040243,-150.0,0.00010944,2]
[339767771,1727973040252,-1000.0,0.00010945,2]
[339767772,1727973040262,-1000.0,0.00010945,2]
[339767773,1727973040272,-1000.0,0.00010945,2]
[339767774,1727973040284,-1000.0,0.00010945,2]
[339767775,1727973040295,-1000.0,0.00010945,2]
[339767776,1727973040304,-1000.0,0.00010945,2]
[339767777,1727973040314,-1000.0,0.00010945,2]
[339767778,1727973040324,-1000.0,0.00010945,2]
[339767779,1727973040333,-1000.0,0.00010945,2]
[339767780,1727973040343,-585.4671,0.00010945,2]
[339767781,1727973040353,-150.0,0.00010946,2]
[339767782,1727973040362,-150.0,0.00010948,2]
[339767783,1727973040372,-1500.0,0.0001095,2]
[339767784,1727973040382,-150.0,0.00010951,2]
[339767785,1727973040391,-150.0,0.00010951,2]
[339767786,1727973040401,-150.0,0.00010952,2]
[339767787,1727973040411,-150.0,0.00010956,2]
[339767788,1727973040424,-150.0,0.00010956,2]
[339767789,1727973040433,-500.0,0.00010958,2]
[339767790,1727973040442,-183.92572126,0.00010958,2]
[339767791,1727973040452,-500.0,0.00010958,2]
[339767792,1727973040463,-500.0,0.00010958,2]
[339767793,1727973040472,-471.25253049,0.00010958,2]
[339767794,1727973040482,-504.32644703,0.00010958,2]
[339767795,1727973040492,-466.72539341,0.00010958,2]
[339767796,1727973040503,-198.1744672,0.00010958,2]
[339767797,1727973040512,-500.0,0.00010958,2]
[339767798,1727973040522,-500.0,0.00010958,2]
[339767799,1727973040533,-416.73814754,0.00010958,2]
[339767800,1727973040542,-500.0,0.00010958,2]
[339767801,1727973040552,-500.0,0.00010958,2]
[339767802,1727973040561,-500.0,0.00010958,2]
[339767803,1727973040571,-500.0,0.00010958,2]
[339767804,1727973040580,-500.0,0.00010958,2]
[339767805,1727973040590,-500.0,0.00010958,2]
[339767806,1727973040599,-533.98658647,0.00010958,2]
[339767807,1727973040608,-200.0,0.00010959,2]
[339767808,1727973040618,-200.0,0.00010959,2]
[339767809,1727973040627,-167.75,0.00010959,2]
[339767810,1727973040637,-162.89,0.00010959,2]
[339767811,1727973040646,-273.58,0.00010959,2]
[339767812,1727973040656,-270.55,0.00010959,2]
[339767813,1727973040666,-150.0,0.00010959,2]
[339767814,1727973040676,-250.0,0.00010959,2]
[339767815,1727973040685,-1500.0,0.00010959,2]
[339767816,1727973040694,-515.85,0.00010959,2]
[339767817,1727973040704,-150.0,0.00010965,2]
[339767818,1727973040713,-500.0,0.00010973,2]
[339767819,1727973040723,-160.0,0.00010973,2]
[339767820,1727973040732,-160.55661066,0.00010973,2]
[339767821,1727973040741,-294.93026789,0.00010973,2]
[339767822,1727973040751,-160.94706921,0.00010973,2]
[339767823,1727973040760,-171.0878525,0.00010973,2]
[339767824,1727973040769,-500.0,0.00010973,2]
[339767825,1727973040779,-150.0,0.00010973,2]
[339767826,1727973040790,-150.0,0.00010978,2]
[339767827,1727973040800,-150.0,0.00010979,2]
[339767828,1727973040809,-378344.10290426,0.0001098,2]
[339767829,1727973040819,-150.0,0.0001098,2]
[339767830,1727973040829,-150.0,0.00010984,2]
[339767831,1727973040839,-150.0,0.00010985,2]
[339767832,1727973040848,-150.0,0.00010987,2]
[339767833,1727973040858,-150.0,0.00010989,2]
[339767834,1727973040867,-59815.3415986,0.0001099,2]
[339767839,1727973041404,-175780.0772696,0.0001099,2]
[339767840,1727973041414,-150.0,0.0001099,2]
[339767841,1727973041427,-1613.9915893,0.00010992,2]
[339767842,1727973041436,-59398.4773629,0.00010992,2]
[339767843,1727973041446,-50965.0716362,0.00010992,2]
[339767844,1727973041455,-8036.5247324,0.00010992,2]
[339767845,1727973041465,-6895.49761,0.00010992,2]
[339767846,1727973041474,-4570.5931106,0.00010992,2]
[339767848,1727973041483,-3998.5635875,0.00010992,2]
[339767850,1727973041492,-4217.2558031,0.00010992,2]
[339767851,1727973041504,-3770.1086593,0.00010992,2]
[339767853,1727973041514,-17145.5027286,0.00010992,2]
[339767855,1727973041524,-15352.8869289,0.00010992,2]
[339767857,1727973041536,-150.0,0.00010994,2]
[339767859,1727973041545,-7299.8317466,0.00010994,2]
[339767861,1727973041554,-7647.466865,0.00010994,2]
[339767862,1727973041563,-1719.6454158,0.00010994,2]
[339767864,1727973041572,-150.0,0.00010995,2]
[339767866,1727973041581,-150.0,0.00010999,2]
[339767868,1727973041590,-170.124,0.00010999,2]
[339767870,1727973041599,-264.523,0.00010999,2]
[339767872,1727973041608,-150.301,0.00010999,2]
[339767874,1727973041617,-250.0,0.00010999,2]
[339767876,1727973041628,-150.0,0.00010999,2]
[339767878,1727973041637,-1000.0,0.00010999,2]
[339767880,1727973041646,-1000.0,0.00010999,2]
[339767882,1727973041655,-1000.0,0.00010999,2]
[339767884,1727973041664,-239.15998843,0.00010999,2]
[339767885,1727973041673,-950.3725,0.00010999,2]
[339767887,1727973041682,-153.58102654,0.00010999,2]
[339767889,1727973041691,-1000.0,0.00010999,2]
[339767891,1727973041699,-1000.0,0.00010999,2]
[339767893,1727973041709,-770.40320788,0.00011,2]
[339767895,1727973041718,-495190.37185698,0.00011,2]
[339767897,1727973041730,-1723073.51630524,0.00011,2]
[339767899,1727973041741,-1218428.50247223,0.00011,2]
[339767901,1727973041752,-565.02912286,0.00011,2]
[339767903,1727973041763,-667.76472037,0.00011,2]
[339767905,1727973041774,-326.82220256,0.00011,2]
[339767908,1727973041788,-564.662132,0.00011,2]
[339767910,1727973041799,-365.499,0.00011,2]
[339767912,1727973041817,-1674.99033332,0.00011,2]
[339767917,1727973041852,-3980.22512785,0.00011,2]
[339767919,1727973041864,-3997.8386876,0.00011,2]
[339767921,1727973041875,-13816.91598433,0.00011,2]
[339767923,1727973041886,-12424.74685814,0.00011,2]
[339767925,1727973041897,-1109.76612253,0.00011,2]
[339767927,1727973041909,-502.0,0.00011,2]
[339767929,1727973041920,-1494.37235593,0.00011,2]
[339767934,1727973041962,-267.20354581,0.00011,2]
[339767940,1727973042003,-500.0,0.00010873,2]
[339767942,1727973042013,-7096.73680442,0.00011,2]
[339767944,1727973042024,-7775.54787387,0.00011,2]
[339767946,1727973042038,-1595.48310882,0.00011,2]
[339767948,1727973042049,-14979.50612864,0.00011,2]
[339767950,1727973042060,-4279.73361318,0.00011,2]
[339767967,1727973042215,-290.305015,0.00011,2]
[339767969,1727973042227,-3352.56,0.00011,2]
[339768027,1727973042802,-2960.45,0.00010367,2]
[339768029,1727973042815,-243.10198911,0.00010367,2]
[339768031,1727973042824,-90.51375535,0.00010743,2]
[339768058,1727973043071,-59.48624465,0.00010743,2]
[339768060,1727973043080,-150.0,0.0001077,2]
[339768062,1727973043089,-46.49364975,0.0001078,2]
[339768064,1727973043099,-103.50635025,0.0001078,2]
[339768066,1727973043109,-150.0,0.00010784,2]
[339768068,1727973043118,-150.0,0.000108,2]
[339768070,1727973043127,-150.0,0.00010817,2]
[339768072,1727973043136,-150.0,0.00010826,2]
[339768074,1727973043145,-150.0,0.00010838,2]
[339768076,1727973043154,-150.0,0.00010862,2]
[339768078,1727973043163,-29.37074379,0.00010868,2]
[339768080,1727973043174,-120.62925621,0.00010868,2]
[339768082,1727973043183,-160.55629124,0.00010873,2]
[339768084,1727973043192,-150.0,0.00010884,2]
[339768087,1727973043201,-150.0,0.00010904,2]
[339768091,1727973043211,-150.0,0.00010904,2]
[339768094,1727973043222,-150.0,0.00010913,2]
[339768096,1727973043231,-150.0,0.00010919,2]
[339768098,1727973043241,-150.0,0.00010921,2]
[339768099,1727973043250,-150.0,0.00010922,2]
[339768101,1727973043259,-150.0,0.00010927,2]
[339768102,1727973043269,-150.0,0.00010935,2]
[339768105,1727973043278,-150.0,0.00010938,2]
[339768107,1727973043288,-150.0,0.00010946,2]
[339768108,1727973043297,-150.0,0.00010946,2]
[339768109,1727973043306,-150.0,0.00010949,2]
[339768110,1727973043315,-150.0,0.00010955,2]
[339768111,1727973043325,-150.0,0.00010957,2]
[339768112,1727973043335,-150.0,0.00010969,2]
[339768113,1727973043346,-150.0,0.00010978,2]
[339768114,1727973043356,-150.0,0.00010985,2]
[339768115,1727973043366,-150.0,0.00010985,2]
[339768117,1727973043376,-150.0,0.00010988,2]
[339768119,1727973043386,-150.0,0.0001099,2]
[339768121,1727973043396,-150.0,0.0001099,2]
[339768123,1727973043406,-150.0,0.00010994,2]
[339768125,1727973043417,-84286.91208128,0.00011,2]
[339768128,1727973043430,-691.03409647,0.00011,2]
[339768131,1727973043457,-323.41008839,0.00011,2]
[339768200,1727973044160,-1042.38961341,0.00011,2]
[339768202,1727973044171,-6253.70712048,0.00011,2]
[339768204,1727973044183,-1311.2415,0.00011,2]
[339768207,1727973044195,-508.26448205,0.00011,2]
[339768219,1727973044303,-916832.00592076,0.00011,2]
[339768221,1727973044312,-375.0,0.00011,2]
[339768223,1727973044322,-361680.34363897,0.00011,2]
[339768225,1727973044331,-250.0,0.00011,2]
[339768226,1727973044340,-899036.22519938,0.00011,2]
[339768228,1727973044349,-158.5,0.00011,2]
[339768230,1727973044358,-5813524.01892308,0.00011,2]
[339768233,1727973044370,-111024.25498921,0.00011,2]
[339768235,1727973044380,-39982.21591552,0.00011,2]
[339768237,1727973044391,-119614.76461552,0.00011,2]
[339768241,1727973044422,-6052.1147381,0.00011,2]
[339768242,1727973044434,-1323.72601942,0.00011,2]
[339768319,1727973045183,-594.0,0.00010623,2]
[339768321,1727973045193,-732.1230304,0.00010843,2]
[339768327,1727973045241,-415.8769696,0.00010843,2]
[339768329,1727973045250,-239.15998843,0.00010999,2]
[339768331,1727973045260,-5088.63694672,0.00011,2]
[339768334,1727973045272,-5525.75483118,0.00011,2]
[339768336,1727973045285,-1773455.37202373,0.00011,2]
[339768338,1727973045299,-201.430836,0.00011,2]
[339768340,1727973045308,-151.0,0.00011,2]
[339768342,1727973045317,-151.0,0.00011,2]
[339768344,1727973045327,-151.0,0.00011,2]
[339768346,1727973045336,-151.0,0.00011,2]
[339768348,1727973045345,-500.0,0.00011,2]
[339768350,1727973045354,-500.0,0.00011,2]
[339768352,1727973045363,-500.0,0.00011,2]
[339768354,1727973045372,-500.0,0.00011,2]
[339768356,1727973045381,-830.11,0.00011,2]
[339768358,1727973045391,-379.067681,0.00011,2]
[339768360,1727973045400,-379.067681,0.00011,2]
[339768361,1727973045409,-379.067681,0.00011,2]
[339768362,1727973045420,-379.067681,0.00011,2]
[339768363,1727973045429,-89908.23135109,0.00011,2]
[339768470,1727973046404,-609.67367557,0.00011,2]
[339768472,1727973046418,-308.52858885,0.00011,2]
[339768476,1727973046446,-510.32078784,0.00011,2]
[339768478,1727973046458,-290.40415887,0.00011,2]
[339768482,1727973046486,-1820.63700595,0.00011,2]
[339768495,1727973046599,-63296.96101664,0.00011,2]
[339768684,1727973048579,319.921863,0.00010219,2]
[339769415,1727973310357,437.72,8.395e-05,2]
[339769416,1727973494945,150.0,0.00010187,2]
[339769417,1727973494969,58.08,0.00010187,2]
[339769418,1727973584350,1022.61737238,0.00010155,2]
[339769419,1727973594299,225.56073912,0.00010155,2]
[339769420,1727973830360,415.83,8.405e-05,2]
[339769421,1727973905378,150.0,9.888e-05,2]
[339769422,1727973908091,250.0,0.0001021,2]
[339769438,1727974183503,1050.0,0.0001,2]
[339769444,1727974231474,-393.10860168,0.00010278,2]
[339769445,1727974231484,-278.29,0.00010326,2]
[339769446,1727974231492,-1000.0,0.00010469,2]
[339769447,1727974231502,-675.91094425,0.00010508,2]
[339769448,1727974231512,-200.9,0.00010608,2]
[339769449,1727974231521,-415.83,0.00010669,2]
[339769450,1727974231530,-675.91094424,0.00010695,2]
[339769451,1727974231540,-150.0,0.00010795,2]
[339769452,1727974231549,-159.33880151,0.000109,2]
[339769453,1727974231558,-6135.2003,0.000109,2]
[339769454,1727974231568,-1000.0,0.000109,2]
[339769455,1727974231577,-254.541,0.00010916,2]
[339769456,1727974231586,-150.99,0.00010916,2]
[339769457,1727974231595,-999.99,0.00010921,2]
[339769458,1727974231604,-1297.0,0.00010921,2]
[339769459,1727974231612,-449.0,0.00010921,2]
[339769460,1727974231621,-626.0,0.00010921,2]
[339769461,1727974231630,-213.31066821,0.00010921,2]
[339769462,1727974231692,-670.58688908,0.00010921,2]
[339769463,1727974231703,-380.10244271,0.00010921,2]
[339769464,1727974231712,-1082.0,0.00010921,2]
[339769465,1727974231721,-934.0,0.00010921,2]
[339769466,1727974231730,-203.89755728,0.00010921,2]
[339769467,1727974231741,-606.10244272,0.00010921,2]
[339769468,1727974231750,-559.0,0.00010921,2]
[339769469,1727974231762,-554.0,0.00010921,2]
[339769471,1727974231773,-1905.0,0.00010921,2]
[339769473,1727974231782,-1910.0,0.00010921,2]
[339769475,1727974231791,-3351.0,0.00010921,2]
[339769477,1727974231799,-807.0,0.00010921,2]
[339769479,1727974231809,-150.0,0.00010921,2]
[339769482,1727974231823,-1148.0,0.00010921,2]
[339769484,1727974231832,-5874.0,0.00010921,2]
[339769485,1727974231843,-13507.0,0.00010921,2]
[339769487,1727974231852,-1215.65651583,0.00010949,2]
[339769489,1727974231861,-200.0,0.00010959,2]
[339769491,1727974231870,-218.86,0.00010959,2]
[339769493,1727974231879,-167.75,0.00010959,2]
[339769495,1727974231888,-334.63104145,0.00010959,2]
[339769498,1727974231910,-322.38932731,0.00010959,2]
[339769499,1727974231922,-542.69963124,0.00010959,2]
[339769500,1727974231932,-250.0,0.00010959,2]
[339769501,1727974231942,-1000.0,0.00010999,2]
[339769502,1727974231951,-1000.0,0.00010999,2]
[339769503,1727974231960,-1000.0,0.00010999,2]
[339769504,1727974231969,-1000.0,0.00010999,2]
[339769505,1727974231978,-500.0,0.00010999,2]
[339769506,1727974231987,-500.0,0.00010999,2]
[339769507,1727974231996,-500.0,0.00010999,2]
[339769508,1727974232005,-435.1931275,0.00010999,2]
[339769509,1727974232014,-603.66738187,0.00010999,2]
[339769510,1727974232023,-533.0,0.00011,2]
[339769511,1727974232031,-158.81218033,0.00011,2]
[339769513,1727974237468,-448.7075297,0.00011,2]
[339769514,1727974237479,-10006.37556363,0.00011,2]
[339769515,1727974237490,-590.62314607,0.00011,2]
[339769516,1727974237501,-19584.17613878,0.00011,2]
[339769517,1727974237512,-720.62291816,0.00011,2]
[339769518,1727974237522,-394.12782113,0.00011,2]
[339769519,1727974237542,-656446.52838556,0.00011,2]
[339769520,1727974237556,-1463549.12979358,0.00011,2]
[339769521,1727974237569,-2565.0,0.00011,2]
[339769522,1727974237581,-659.2,0.00011,2]
[339769523,1727974237592,-726.22550044,0.00011,2]
[339769524,1727974237603,-2564.7511365,0.00011,2]
[339769525,1727974237704,-585.41820824,0.00011,2]
[339769526,1727974237715,-1879.79073718,0.00011,2]
[339769527,1727974237726,-1220.78618031,0.00011,2]
[339769528,1727974237737,-2979.21381969,0.00011,2]
[339769529,1727974237747,-26983.48575509,0.00011,2]
[339769530,1727974237759,-974.16207443,0.00011,2]
[339769531,1727974237772,-399.08923112,0.00011,2]
[339769532,1727974237783,-14345.5279083,0.00011,2]
[339769533,1727974237799,-1470.87908501,0.00011,2]
[339769534,1727974237811,-902.15263318,0.00011,2]
[339769535,1727974237827,-5408.83466235,0.00011,2]
[339769536,1727974237836,-5489.80243761,0.00011,2]
[339769537,1727974237849,-385202.54479597,0.00011,2]
[339769538,1727974237860,-747.1,0.00011,2]
[339769539,1727974237869,-4846.7136035,0.00011,2]
[339769540,1727974237879,-3998.2799994,0.00011,2]
[339769541,1727974237888,-3515.9098744,0.00011,2]
[339769542,1727974237897,-3603.7114433,0.00011,2]
[339769543,1727974237907,-200.59,0.00011,2]
[339769544,1727974237916,-961.454627,0.00011008,2]
[339769545,1727974237925,-3066.95209208,0.00011008,2]
[339769546,1727974237948,-2709.94494954,0.00011008,2]
[339769547,1727974237960,-5197.57096875,0.00011008,2]
[339769548,1727974237971,-4583.2606,0.00011008,2]
[339769549,1727974237983,-449.59669731,0.00011008,2]
[339769550,1727974237994,-504.46416423,0.00011008,2]
[339769551,1727974238006,-10528.51076109,0.00011008,2]
[339769552,1727974238015,-5562.5706743,0.00011015,2]
[339769553,1727974238025,-258.46,0.00011023,2]
[339769554,1727974238034,-766.79,0.00011121,2]
[339769555,1727974238043,-1927.06152806,0.00011226,2]
[339769556,1727974238054,-845.57482597,0.00011226,2]
[339769557,1727974238065,-28.80821255,0.00011226,2]
[339769558,1727974238080,-422.47709815,0.00011349,2]
[339769559,1727974238089,-208.08,0.00011461,2]
[339769560,1727974238098,-4743.9776241,0.00011479,2]
[339769561,1727974238121,-3006.44051846,0.00011479,2]
[339769562,1727974238132,-430.05644926,0.00011479,2]
[339769563,1727974238141,-5000.0,0.00011479,2]
[339769564,1727974238151,-218.86,0.00011507,2]
[339769565,1727974238160,-1793.88816674,0.00011507,2]
[339769566,1727974238171,-957.11183326,0.00011507,2]
[339769567,1727974238181,-1000.0,0.00011778,2]
[339769568,1727974238190,-165.42570572,0.00012,2]
[339769569,1727974238201,-334.57429428,0.00012,2]
[339769570,1727974238211,-1155.28068162,0.00012,2]
[339769571,1727974240097,-533.82,0.00010788,2]
[339769572,1727974240112,-577.56675783,0.00010788,2]
[339769573,1727974240122,-386.47931838,0.00012,2]
[339769574,1727974240131,-227.0,0.00012,2]
[339769575,1727974240141,-803.45392379,0.00012,2]
[339769576,1727974240152,-296.54607621,0.00012,2]
[339769577,1727974240162,-229.29,0.00012033,2]
[339769578,1727974240172,-62.37313179,0.00012055,2]
[339769579,1727974240183,-156.48686821,0.00012055,2]
[339769580,1727974240193,-180.0,0.00012055,2]
[339769581,1727974240203,-258.46,0.00012248,2]
[339769582,1727974240213,-193.0,0.0001227,2]
[339769583,1727974240225,-150.0,0.00012328,2]
[339769584,1727974240234,-150.0,0.00012328,2]
[339769585,1727974240244,-2500.0,0.00012328,2]
[339769586,1727974240253,-2500.0,0.00012328,2]
[339769587,1727974240263,-1563.96894354,0.00012328,2]
[339769588,1727974240275,-338.805,0.00012328,2]
[339769589,1727974240286,-597.22605646,0.00012328,2]
[339769590,1727974240296,-586.32252625,0.00012328,2]
[339769591,1727974240308,-278.90148228,0.00012328,2]
[339769592,1727974240333,-1634.77599147,0.00012328,2]
[339769593,1727974240342,-2500.0,0.00012328,2]
[339769594,1727974240351,-1419.49161233,0.00012328,2]
[339769595,1727974240366,-1080.50838767,0.00012328,2]
[339769596,1727974240376,-2500.0,0.00012328,2]
[339769597,1727974240385,-2500.0,0.00012328,2]
[339769598,1727974240395,-2500.0,0.00012328,2]
[339769599,1727974240404,-2500.0,0.00012328,2]
[339769600,1727974240414,-1931.61431312,0.00012328,2]
[339769601,1727974240426,-568.38568688,0.00012328,2]
[339769602,1727974240435,-2500.0,0.00012328,2]
[339769603,1727974240445,-1000.0,0.00012329,2]
[339769604,1727974240455,-1000.0,0.00012329,2]
[339769605,1727974240464,-1000.0,0.00012329,2]
[339769606,1727974240474,-1000.0,0.00012329,2]
[339769607,1727974240483,-1000.0,0.00012329,2]
[339769608,1727974240493,-337.37421212,0.00012329,2]
[339769609,1727974240504,-662.62578788,0.00012329,2]
[339769610,1727974240514,-1000.0,0.00012329,2]
[339769611,1727974240523,-1000.0,0.00012329,2]
[339769612,1727974240533,-1000.0,0.00012329,2]
[339769613,1727974240542,-1000.0,0.00012329,2]
[339769614,1727974240552,-1000.0,0.00012329,2]
[339769615,1727974240562,-1000.0,0.00012329,2]
[339769616,1727974240571,-1000.0,0.00012329,2]
[339769617,1727974240582,-1000.0,0.00012329,2]
[339769618,1727974240592,-1000.0,0.00012329,2]
[339769619,1727974240601,-174.57371212,0.00012329,2]
[339769620,1727974240613,-825.42628788,0.00012329,2]
[339769621,1727974240622,-1000.0,0.00012329,2]
[339769622,1727974240632,-1000.0,0.00012329,2]
[339769623,1727974240641,-1000.0,0.00012329,2]
[339769624,1727974240651,-1000.0,0.00012329,2]
[339769625,1727974240660,-151.0,0.00012329,2]
[339769626,1727974240670,-151.0,0.00012329,2]
[339769627,1727974240679,-151.0,0.00012329,2]
[339769628,1727974240688,-151.0,0.00012329,2]
[339769629,1727974240698,-151.0,0.00012329,2]
[339769630,1727974240708,-151.0,0.00012329,2]
[339769631,1727974240717,-281.229622,0.00012329,2]
[339769632,1727974240727,-151.0,0.00012329,2]
[339769633,1727974240737,-151.0,0.00012329,2]
[339769634,1727974240747,-186.062215,0.00012329,2]
[339769635,1727974240757,-186.062215,0.00012329,2]
[339769636,1727974240772,-186.062215,0.00012329,2]
[339769637,1727974240782,-186.062215,0.00012329,2]
[339769638,1727974240793,-164.680599,0.00012329,2]
[339769639,1727974240802,-164.680599,0.00012329,2]
[339769640,1727974240813,-197.521695,0.00012329,2]
[339769641,1727974240822,-197.521695,0.00012329,2]
[339769642,1727974240833,-197.521695,0.00012329,2]
[339769643,1727974240843,-197.521695,0.00012329,2]
[339769644,1727974240852,-151.0,0.00012329,2]
[339769645,1727974240861,-151.0,0.00012329,2]
[339769646,1727974240871,-155.607986,0.00012329,2]
[339769647,1727974240880,-155.607986,0.00012329,2]
[339769648,1727974240890,-155.607986,0.00012329,2]
[339769649,1727974240899,-155.607986,0.00012329,2]
[339769650,1727974240909,-33.63594179,0.00012329,2]
[339769651,1727974240921,-189.70376521,0.00012329,2]
[339769652,1727974240931,-223.339707,0.00012329,2]
[339769653,1727974240940,-301.613499,0.00012329,2]
[339769654,1727974240950,-301.613499,0.00012329,2]
[339769655,1727974240960,-301.613499,0.00012329,2]
[339769656,1727974240969,-50.17270114,0.00012329,2]
[339769657,1727974241008,-251.44079786,0.00012329,2]
[339769658,1727974241019,-151.0,0.00012329,2]
[339769659,1727974241029,-151.0,0.00012329,2]
[339769660,1727974241038,-151.0,0.00012329,2]
[339769661,1727974241048,-151.0,0.00012329,2]
[339769662,1727974241057,-151.0,0.00012329,2]
[339769663,1727974241067,-151.0,0.00012329,2]
[339769664,1727974241081,-151.0,0.00012329,2]
[339769665,1727974241091,-151.0,0.00012329,2]
[339769666,1727974241100,-151.0,0.00012329,2]
[339769667,1727974241110,-151.0,0.00012329,2]
[339769668,1727974241119,-673.35306,0.00012329,2]
[339769669,1727974241129,-673.35306,0.00012329,2]
[339769670,1727974241138,-673.35306,0.00012329,2]
[339769671,1727974241147,-475.39590264,0.00012329,2]
[339769688,1727974242571,-197.95715736,0.00012329,2]
[339769689,1727974242582,-151.0,0.00012329,2]
[339769690,1727974242591,-151.0,0.00012329,2]
[339769691,1727974242600,-151.0,0.00012329,2]
[339769692,1727974242609,-151.0,0.00012329,2]
[339769693,1727974242618,-215.657773,0.00012329,2]
[339769694,1727974242626,-215.657773,0.00012329,2]
[339769695,1727974242635,-215.657773,0.00012329,2]
[339769696,1727974242645,-215.657773,0.00012329,2]
[339769697,1727974242654,-151.0,0.00012329,2]
[339769698,1727974242663,-151.0,0.00012329,2]
[339769699,1727974242672,-151.0,0.00012329,2]
[339769700,1727974242681,-151.0,0.00012329,2]
[339769701,1727974242690,-151.0,0.00012329,2]
[339769702,1727974242699,-151.0,0.00012329,2]
[339769703,1727974242708,-151.0,0.00012329,2]
[339769704,1727974242717,-151.0,0.00012329,2]
[339769705,1727974242726,-151.0,0.00012329,2]
[339769706,1727974242735,-151.0,0.00012329,2]
[339769707,1727974242744,-635.158727,0.00012329,2]
[339769708,1727974242753,-635.158727,0.00012329,2]
[339769709,1727974242764,-635.158727,0.00012329,2]
[339769710,1727974242775,-635.158727,0.00012329,2]
[339769711,1727974242785,-151.0,0.00012329,2]
[339769712,1727974242794,-151.0,0.00012329,2]
[339769713,1727974242803,-250.346432,0.00012329,2]
[339769714,1727974242813,-250.346432,0.00012329,2]
[339769715,1727974242822,-250.346432,0.00012329,2]
[339769716,1727974242832,-250.346432,0.00012329,2]
[339769717,1727974242842,-151.0,0.00012329,2]
[339769718,1727974242851,-151.0,0.00012329,2]
[339769719,1727974242861,-250.346432,0.00012329,2]
[339769720,1727974242870,-250.346432,0.00012329,2]
[339769721,1727974242880,-250.346432,0.00012329,2]
[339769722,1727974242889,-250.346432,0.00012329,2]
[339769723,1727974242898,-152.635953,0.00012329,2]
[339769724,1727974242907,-333.111463,0.00012329,2]
[339769725,1727974242916,-333.111463,0.00012329,2]
[339769726,1727974242928,-333.111463,0.00012329,2]
[339769727,1727974242937,-333.111463,0.00012329,2]
[339769728,1727974242946,-333.111463,0.00012329,2]
[339769729,1727974242956,-333.111463,0.00012329,2]
[339769730,1727974242967,-333.111463,0.00012329,2]
[339769731,1727974242976,-333.111463,0.00012329,2]
[339769732,1727974242985,-303.324768,0.00012329,2]
[339769733,1727974242994,-303.324768,0.00012329,2]
[339769734,1727974243003,-303.324768,0.00012329,2]
[339769735,1727974243013,-303.324768,0.00012329,2]
[339769736,1727974243022,-215.478619,0.00012329,2]
[339769737,1727974243032,-215.478619,0.00012329,2]
[339769738,1727974243041,-303.324768,0.00012329,2]
[339769739,1727974243050,-303.324768,0.00012329,2]
[339769740,1727974243059,-303.324768,0.00012329,2]
[339769741,1727974243068,-303.324768,0.00012329,2]
[339769742,1727974243079,-215.478619,0.00012329,2]
[339769743,1727974243087,-215.478619,0.00012329,2]
[339769744,1727974243096,-301.613499,0.00012329,2]
[339769745,1727974243105,-301.613499,0.00012329,2]